[Event "*** Titled Tuesday Blitz"]
[Site "Chess.com"]
[Date "2021.02.02"]
[Round "7"]
[White "catzapto"]
[Black "ybruned"]
[Result "1/2-1/2"]
[WhiteElo "2123"]
[BlackElo "2310"]
[TimeControl "180+1"]
[EndTime "11:22:21 PST"]
[Termination "Game drawn by repetition"]

1. e4 {[%clk 0:03:00.9]} 1... b6 {[%clk 0:02:59.7]} 2. Nf3 {[%clk 0:03:00.9]}
2... Bb7 {[%clk 0:02:59.3]} 3. Bc4 {[%clk 0:02:58.7]} 3... e6 {[%clk 0:02:58.4]}
4. Qe2 {[%clk 0:02:50.3]} 4... c5 {[%clk 0:02:47.6]} 5. c3 {[%clk 0:02:38.4]}
5... d5 {[%clk 0:02:38]} 6. exd5 {[%clk 0:02:37.6]} 6... Bxd5 {[%clk 0:02:35.6]}
7. Bxd5 {[%clk 0:02:20.8]} 7... Qxd5 {[%clk 0:02:34.3]} 8. Na3 {[%clk
0:02:21.4]} 8... Nf6 {[%clk 0:02:11.3]} 9. Nb5 {[%clk 0:02:16.7]} 9... Qb7
{[%clk 0:02:09]} 10. Qe5 {[%clk 0:02:05.5]} 10... Nc6 {[%clk 0:01:35.7]} 11. Qc7
{[%clk 0:01:50.2]} 11... Rb8 {[%clk 0:01:20.8]} 12. Nd6+ {[%clk 0:01:18.3]}
12... Bxd6 {[%clk 0:01:19]} 13. Qxd6 {[%clk 0:01:19.2]} 13... Qd7 {[%clk
0:01:13.7]} 14. Qxd7+ {[%clk 0:01:15.5]} 14... Nxd7 {[%clk 0:01:05.4]} 15. O-O
{[%clk 0:01:15]} 15... O-O {[%clk 0:01:05.2]} 16. a3 {[%clk 0:01:10.3]} 16...
Nde5 {[%clk 0:01:00.1]} 17. Nxe5 {[%clk 0:01:05.5]} 17... Nxe5 {[%clk 0:00:59]}
18. d4 {[%clk 0:01:03]} 18... Nd3 {[%clk 0:00:48.5]} 19. Rd1 {[%clk 0:00:59.4]}
19... c4 {[%clk 0:00:44.3]} 20. Rb1 {[%clk 0:00:55]} 20... Rfd8 {[%clk
0:00:29.2]} 21. Be3 {[%clk 0:00:54.1]} 21... b5 {[%clk 0:00:27.3]} 22. b3 {[%clk
0:00:52]} 22... a6 {[%clk 0:00:25.9]} 23. Kf1 {[%clk 0:00:45.6]} 23... f6 {[%clk
0:00:24.2]} 24. Ke2 {[%clk 0:00:43]} 24... Kf7 {[%clk 0:00:23.6]} 25. a4 {[%clk
0:00:40.7]} 25... e5 {[%clk 0:00:18.3]} 26. axb5 {[%clk 0:00:37.2]} 26... axb5
{[%clk 0:00:17.7]} 27. Ra1 {[%clk 0:00:17.5]} 27... Rb7 {[%clk 0:00:12]} 28.
bxc4 {[%clk 0:00:14.9]} 28... bxc4 {[%clk 0:00:11.6]} 29. Ra4 {[%clk 0:00:15.4]}
29... Rc8 {[%clk 0:00:10.8]} 30. Rxc4 {[%clk 0:00:13.3]} 30... Rxc4 {[%clk
0:00:09.1]} 31. Kxd3 {[%clk 0:00:14.2]} 31... Rbc7 {[%clk 0:00:06.7]} 32. Bd2
{[%clk 0:00:12]} 32... exd4 {[%clk 0:00:06.6]} 33. cxd4 {[%clk 0:00:12.9]} 33...
Rc8 {[%clk 0:00:05.7]} 34. Be3 {[%clk 0:00:11.8]} 34... R4c7 {[%clk 0:00:05.8]}
35. Ke4 {[%clk 0:00:12]} 35... Re7+ {[%clk 0:00:05.2]} 36. Kd3 {[%clk
0:00:11.2]} 36... Rd7 {[%clk 0:00:05.9]} 37. g3 {[%clk 0:00:11.4]} 37... g5
{[%clk 0:00:06.1]} 38. Ke4 {[%clk 0:00:11.7]} 38... Kg6 {[%clk 0:00:06.4]} 39.
h3 {[%clk 0:00:10.8]} 39... Re8+ {[%clk 0:00:06.7]} 40. Kf3 {[%clk 0:00:10.7]}
40... f5 {[%clk 0:00:07]} 41. d5 {[%clk 0:00:08.9]} 41... Red8 {[%clk 0:00:07]}
42. g4 {[%clk 0:00:08.6]} 42... Rxd5 {[%clk 0:00:06.8]} 43. gxf5+ {[%clk
0:00:07.8]} 43... Kxf5 {[%clk 0:00:07.2]} 44. Rg1 {[%clk 0:00:07.7]} 44... h6
{[%clk 0:00:07.3]} 45. h4 {[%clk 0:00:08.2]} 45... Kf6 {[%clk 0:00:07]} 46.
hxg5+ {[%clk 0:00:08.2]} 46... hxg5 {[%clk 0:00:07.9]} 47. Rh1 {[%clk
0:00:08.1]} 47... Rf5+ {[%clk 0:00:07.2]} 48. Kg4 {[%clk 0:00:08.1]} 48... Rdd5
{[%clk 0:00:06]} 49. Rh6+ {[%clk 0:00:07.9]} 49... Kg7 {[%clk 0:00:06]} 50. Rh5
{[%clk 0:00:07.8]} 50... Kf7 {[%clk 0:00:05.2]} 51. Rxg5 {[%clk 0:00:07.3]}
51... Rxg5+ {[%clk 0:00:05.4]} 52. Bxg5 {[%clk 0:00:08.2]} 52... Kg6 {[%clk
0:00:05.4]} 53. f4 {[%clk 0:00:08.8]} 53... Rf5 {[%clk 0:00:05.3]} 54. Kf3
{[%clk 0:00:08.2]} 54... Ra5 {[%clk 0:00:05.1]} 55. Kg4 {[%clk 0:00:08.2]} 55...
Ra4 {[%clk 0:00:06]} 56. Bd8 {[%clk 0:00:07]} 56... Ra8 {[%clk 0:00:05.2]} 57.
Bg5 {[%clk 0:00:07]} 57... Re8 {[%clk 0:00:05.1]} 58. f5+ {[%clk 0:00:07.1]}
58... Kf7 {[%clk 0:00:04.9]} 59. Kh5 {[%clk 0:00:07.3]} 59... Re5 {[%clk
0:00:04.5]} 60. Kg4 {[%clk 0:00:07.4]} 60... Re4+ {[%clk 0:00:04.9]} 61. Kh5
{[%clk 0:00:07.3]} 61... Ra4 {[%clk 0:00:04.7]} 62. Bh4 {[%clk 0:00:06]} 62...
Ra5 {[%clk 0:00:04.8]} 63. Kg5 {[%clk 0:00:06.3]} 63... Rb5 {[%clk 0:00:05.3]}
64. Kf4 {[%clk 0:00:06.1]} 64... Rd5 {[%clk 0:00:05.9]} 65. Bg5 {[%clk
0:00:06.2]} 65... Rb5 {[%clk 0:00:06.8]} 66. Kg4 {[%clk 0:00:06.5]} 66... Rb4+
{[%clk 0:00:07.2]} 67. Kh5 {[%clk 0:00:07.2]} 67... Re4 {[%clk 0:00:06.8]} 68.
Bh4 {[%clk 0:00:07.1]} 68... Re2 {[%clk 0:00:07]} 69. Kg5 {[%clk 0:00:07.2]}
69... Rg2+ {[%clk 0:00:07]} 70. Kh5 {[%clk 0:00:07.3]} 70... Rh2 {[%clk
0:00:07.2]} 71. Kg5 {[%clk 0:00:07.5]} 71... Rh1 {[%clk 0:00:08.1]} 72. Kh5
{[%clk 0:00:07.8]} 72... Kg7 {[%clk 0:00:08.7]} 73. Kg5 {[%clk 0:00:08.3]} 73...
Kh7 {[%clk 0:00:06.8]} 74. Kh5 {[%clk 0:00:08.5]} 74... Rg1 {[%clk 0:00:07]} 75.
Bg5 {[%clk 0:00:07.8]} 75... Rg2 {[%clk 0:00:05.9]} 76. Bh4 {[%clk 0:00:07.8]}
76... Kg8 {[%clk 0:00:05.8]} 77. Bg5 {[%clk 0:00:08.1]} 77... Kf7 {[%clk
0:00:06.7]} 78. Bh4 {[%clk 0:00:08]} 78... Ke8 {[%clk 0:00:07.3]} 79. Bg5 {[%clk
0:00:06.9]} 79... Kd7 {[%clk 0:00:07.5]} 80. Kg6 {[%clk 0:00:07.1]} 80... Ke8
{[%clk 0:00:06.8]} 81. f6 {[%clk 0:00:07.2]} 81... Rf2 {[%clk 0:00:05.9]} 82.
Bh6 {[%clk 0:00:06.6]} 82... Rg2+ {[%clk 0:00:05.2]} 83. Kf5 {[%clk 0:00:06.2]}
83... Rf2+ {[%clk 0:00:05]} 84. Kg6 {[%clk 0:00:05.9]} 84... Rg2+ {[%clk
0:00:05.4]} 85. Kf5 {[%clk 0:00:05.9]} 85... Kf7 {[%clk 0:00:04.9]} 86. Bg7
{[%clk 0:00:05.8]} 86... Rg6 {[%clk 0:00:04.4]} 87. Ke5 {[%clk 0:00:06.7]} 87...
Rg5+ {[%clk 0:00:04.4]} 88. Kf4 {[%clk 0:00:06.7]} 88... Rb5 {[%clk 0:00:05.3]}
89. Ke4 {[%clk 0:00:06.9]} 89... Ke6 {[%clk 0:00:05.3]} 90. Kf4 {[%clk
0:00:07.1]} 90... Rf5+ {[%clk 0:00:05]} 91. Kg4 {[%clk 0:00:07.2]} 91... Rb5
{[%clk 0:00:05.8]} 92. Kf4 {[%clk 0:00:07.3]} 92... Kf7 {[%clk 0:00:06]} 93. Ke4
{[%clk 0:00:07]} 93... Kg6 {[%clk 0:00:06.4]} 94. Kd4 {[%clk 0:00:07.2]} 94...
Rh5 {[%clk 0:00:05.7]} 95. Ke4 {[%clk 0:00:07]} 95... Kf7 {[%clk 0:00:06.6]} 96.
Kf4 {[%clk 0:00:07]} 96... Ke6 {[%clk 0:00:06.5]} 97. Kg4 {[%clk 0:00:07.1]}
97... Rb5 {[%clk 0:00:07.1]} 98. Kf4 {[%clk 0:00:07.1]} 1/2-1/2

[Event "*** Titled Tuesday Blitz"]
[Site "Chess.com"]
[Date "2021.02.02"]
[Round "8"]
[White "Kale36"]
[Black "CraiggoryC"]
[Result "1-0"]
[WhiteElo "2277"]
[BlackElo "2125"]
[TimeControl "180+1"]
[EndTime "11:24:42 PST"]
[Termination "Kale36 won by resignation"]

1. d4 {[%clk 0:03:00.9]} 1... Nf6 {[%clk 0:02:59.9]} 2. Nc3 {[%clk 0:03:01.1]}
2... d5 {[%clk 0:02:58.8]} 3. Bg5 {[%clk 0:03:00.9]} 3... e6 {[%clk 0:02:58.9]}
4. e4 {[%clk 0:03:00.8]} 4... dxe4 {[%clk 0:02:57.2]} 5. Nxe4 {[%clk 0:03:00.9]}
5... Be7 {[%clk 0:02:57.6]} 6. Bxf6 {[%clk 0:03:01.4]} 6... Bxf6 {[%clk
0:02:57.7]} 7. Nf3 {[%clk 0:03:02.1]} 7... Nd7 {[%clk 0:02:57.7]} 8. c3 {[%clk
0:03:02.5]} 8... Be7 {[%clk 0:02:45.4]} 9. Bd3 {[%clk 0:03:02.2]} 9... c5 {[%clk
0:02:45.1]} 10. dxc5 {[%clk 0:02:57.6]} 10... Nxc5 {[%clk 0:02:41.1]} 11. Nxc5
{[%clk 0:02:50.3]} 11... Bxc5 {[%clk 0:02:40.7]} 12. Qc2 {[%clk 0:02:50.8]}
12... Qc7 {[%clk 0:02:20.2]} 13. O-O-O {[%clk 0:02:47.8]} 13... Bd7 {[%clk
0:02:17.5]} 14. Rhe1 {[%clk 0:02:45.5]} 14... O-O-O {[%clk 0:02:16.5]} 15. Ne5
{[%clk 0:02:45.9]} 15... Bd6 {[%clk 0:02:04.4]} 16. Nxf7 {[%clk 0:02:40]} 16...
Ba4 {[%clk 0:02:04.1]} 17. Nxd6+ {[%clk 0:02:34.5]} 1-0

[Event "*** Titled Tuesday Blitz"]
[Site "Chess.com"]
[Date "2021.02.02"]
[Round "8"]
[White "Deepweb2020"]
[Black "Carnivoras"]
[Result "1-0"]
[WhiteElo "2396"]
[BlackElo "2563"]
[TimeControl "180+1"]
[EndTime "11:25:20 PST"]
[Termination "Deepweb2020 won by resignation"]

1. d4 {[%clk 0:03:00.9]} 1... d5 {[%clk 0:02:53.1]} 2. c4 {[%clk 0:03:01.8]}
2... c6 {[%clk 0:02:53.3]} 3. cxd5 {[%clk 0:03:01.8]} 3... cxd5 {[%clk
0:02:53.3]} 4. Nc3 {[%clk 0:03:02.7]} 4... Nf6 {[%clk 0:02:53.7]} 5. Bf4 {[%clk
0:03:03.2]} 5... e6 {[%clk 0:02:53.9]} 6. e3 {[%clk 0:03:03.6]} 6... Bd6 {[%clk
0:02:53.7]} 7. Bxd6 {[%clk 0:03:03.9]} 7... Qxd6 {[%clk 0:02:54.6]} 8. f4 {[%clk
0:03:04.4]} 8... O-O {[%clk 0:02:55.3]} 9. Nf3 {[%clk 0:03:04.1]} 9... a6 {[%clk
0:02:56]} 10. Bd3 {[%clk 0:03:04.6]} 10... b5 {[%clk 0:02:56.6]} 11. O-O {[%clk
0:03:05]} 11... Bb7 {[%clk 0:02:57.3]} 12. Ne5 {[%clk 0:03:05.4]} 12... Nbd7
{[%clk 0:02:57.2]} 13. Rf3 {[%clk 0:03:05.6]} 13... Ne4 {[%clk 0:02:57]} 14. Rh3
{[%clk 0:03:00.1]} 14... f5 {[%clk 0:02:52.4]} 15. Qh5 {[%clk 0:02:51.7]} 15...
Ndf6 {[%clk 0:02:35.1]} 16. Qh4 {[%clk 0:02:51.4]} 16... Nxc3 {[%clk 0:02:27]}
17. bxc3 {[%clk 0:02:48.3]} 17... Rac8 {[%clk 0:02:27.6]} 18. g4 {[%clk
0:02:47.1]} 18... Rxc3 {[%clk 0:02:05.7]} 19. g5 {[%clk 0:02:37.1]} 1-0

[Event "*** Titled Tuesday Blitz"]
[Site "Chess.com"]
[Date "2021.02.02"]
[Round "8"]
[White "andrewtnb"]
[Black "SanchezKelvin"]
[Result "0-1"]
[WhiteElo "2294"]
[BlackElo "2466"]
[TimeControl "180+1"]
[EndTime "11:25:23 PST"]
[Termination "SanchezKelvin won by resignation"]

1. d4 {[%clk 0:03:00.9]} 1... Nf6 {[%clk 0:02:58.2]} 2. c4 {[%clk 0:02:59.3]}
2... e6 {[%clk 0:02:56.1]} 3. Nc3 {[%clk 0:02:57]} 3... c5 {[%clk 0:02:56.1]} 4.
d5 {[%clk 0:02:54.8]} 4... exd5 {[%clk 0:02:57]} 5. cxd5 {[%clk 0:02:54.7]} 5...
d6 {[%clk 0:02:57]} 6. e4 {[%clk 0:02:54.9]} 6... g6 {[%clk 0:02:56.5]} 7. Qe2
{[%clk 0:02:50]} 7... Nbd7 {[%clk 0:02:49.4]} 8. Nf3 {[%clk 0:02:47.7]} 8... Bg7
{[%clk 0:02:48.9]} 9. e5 {[%clk 0:02:48.1]} 9... dxe5 {[%clk 0:02:48.6]} 10.
Nxe5 {[%clk 0:02:48.7]} 10... O-O {[%clk 0:02:48.9]} 11. f4 {[%clk 0:02:37.2]}
11... Nxe5 {[%clk 0:02:45.9]} 12. fxe5 {[%clk 0:02:37.4]} 12... Nxd5 {[%clk
0:02:41.6]} 13. Ne4 {[%clk 0:02:17.2]} 13... Qe7 {[%clk 0:02:30.4]} 14. Bg5
{[%clk 0:02:15.7]} 14... Qxe5 {[%clk 0:02:27.4]} 15. O-O-O {[%clk 0:02:14.8]}
15... Bg4 {[%clk 0:02:19.3]} 16. Rxd5 {[%clk 0:01:57.5]} 16... Qxd5 {[%clk
0:02:17.2]} 17. Qxg4 {[%clk 0:01:54.9]} 17... f5 {[%clk 0:02:16.7]} 18. Bc4
{[%clk 0:01:51.2]} 18... Qxc4+ {[%clk 0:02:15.1]} 0-1

[Event "*** Titled Tuesday Blitz"]
[Site "Chess.com"]
[Date "2021.02.02"]
[Round "8"]
[White "canary2016"]
[Black "Sjakkerntobi"]
[Result "1-0"]
[WhiteElo "2035"]
[BlackElo "2289"]
[TimeControl "180+1"]
[EndTime "11:25:38 PST"]
[Termination "canary2016 won by resignation"]

1. d4 {[%clk 0:03:00.9]} 1... e6 {[%clk 0:02:59.4]} 2. c4 {[%clk 0:03:00.7]}
2... Nf6 {[%clk 0:03:00.3]} 3. Nf3 {[%clk 0:02:58.5]} 3... c5 {[%clk 0:03:01.2]}
4. g3 {[%clk 0:02:56.3]} 4... cxd4 {[%clk 0:02:38.2]} 5. Nxd4 {[%clk 0:02:55.9]}
5... e5 {[%clk 0:02:39.1]} 6. Nf3 {[%clk 0:02:47.6]} 6... Nc6 {[%clk 0:02:38.1]}
7. Bg2 {[%clk 0:02:47.5]} 7... e4 {[%clk 0:02:37.3]} 8. Nd4 {[%clk 0:02:47.2]}
8... Bc5 {[%clk 0:02:33.2]} 9. Nb3 {[%clk 0:02:37.7]} 9... Bb4+ {[%clk
0:02:22.6]} 10. Bd2 {[%clk 0:02:35.5]} 10... e3 {[%clk 0:02:21.1]} 11. fxe3
{[%clk 0:02:26.7]} 11... Ng4 {[%clk 0:02:14.9]} 12. O-O {[%clk 0:02:23.9]} 12...
Qb6 {[%clk 0:02:10.8]} 13. Rf4 {[%clk 0:01:43.3]} 13... Nxe3 {[%clk 0:01:59.6]}
14. Re4+ {[%clk 0:01:41.2]} 1-0

[Event "*** Titled Tuesday Blitz"]
[Site "Chess.com"]
[Date "2021.02.02"]
[Round "8"]
[White "northridgehawk"]
[Black "catzapto"]
[Result "1-0"]
[WhiteElo "2320"]
[BlackElo "2119"]
[TimeControl "180+1"]
[EndTime "11:25:56 PST"]
[Termination "northridgehawk won by resignation"]

1. e4 {[%clk 0:03:00.9]} 1... c5 {[%clk 0:02:59.7]} 2. Nf3 {[%clk 0:02:57]} 2...
e6 {[%clk 0:02:54.5]} 3. d4 {[%clk 0:02:57.9]} 3... cxd4 {[%clk 0:02:54.4]} 4.
Nxd4 {[%clk 0:02:57.6]} 4... Nf6 {[%clk 0:02:54.4]} 5. Nc3 {[%clk 0:02:53.3]}
5... Bb4 {[%clk 0:02:53.9]} 6. Bd3 {[%clk 0:02:50.4]} 6... d5 {[%clk 0:02:52.5]}
7. e5 {[%clk 0:02:49.7]} 7... Nfd7 {[%clk 0:02:52]} 8. f4 {[%clk 0:02:49.7]}
8... Nc6 {[%clk 0:02:51.9]} 9. Be3 {[%clk 0:02:46]} 9... Qa5 {[%clk 0:02:30.2]}
10. O-O {[%clk 0:02:37.2]} 10... Bxc3 {[%clk 0:02:27.2]} 11. bxc3 {[%clk
0:02:38.1]} 11... Qxc3 {[%clk 0:02:21.7]} 12. Nb5 {[%clk 0:02:37.7]} 12... Qa5
{[%clk 0:02:21.7]} 13. Nd6+ {[%clk 0:02:34.1]} 13... Ke7 {[%clk 0:02:21.3]} 14.
Qh5 {[%clk 0:02:30.7]} 14... g6 {[%clk 0:02:20]} 15. Qh4+ {[%clk 0:02:29.6]}
15... Kf8 {[%clk 0:02:18.8]} 16. f5 {[%clk 0:02:23.7]} 16... Ndxe5 {[%clk
0:02:08.2]} 17. Bh6+ {[%clk 0:02:21.6]} 17... Kg8 {[%clk 0:02:01.6]} 18. Qf6
{[%clk 0:02:20.9]} 18... Nf3+ {[%clk 0:01:15.9]} 1-0

[Event "*** Titled Tuesday Blitz"]
[Site "Chess.com"]
[Date "2021.02.02"]
[Round "8"]
[White "fridaywins"]
[Black "carlocapau"]
[Result "0-1"]
[WhiteElo "2154"]
[BlackElo "2331"]
[TimeControl "180+1"]
[EndTime "11:26:21 PST"]
[Termination "carlocapau won by resignation"]

1. e4 {[%clk 0:03:00.9]} 1... c5 {[%clk 0:02:59.8]} 2. Nf3 {[%clk 0:03:00.4]}
2... d6 {[%clk 0:03:00.1]} 3. d4 {[%clk 0:03:00.5]} 3... cxd4 {[%clk 0:03:00.7]}
4. Nxd4 {[%clk 0:03:01.4]} 4... Nf6 {[%clk 0:03:01.2]} 5. Nc3 {[%clk 0:03:02]}
5... a6 {[%clk 0:03:01.7]} 6. f4 {[%clk 0:03:02.1]} 6... Qc7 {[%clk 0:02:59.5]}
7. Be3 {[%clk 0:03:01.4]} 7... g6 {[%clk 0:02:56.4]} 8. Nf3 {[%clk 0:03:00.1]}
8... Nc6 {[%clk 0:02:56]} 9. Bd3 {[%clk 0:03:00]} 9... Bg7 {[%clk 0:02:55.6]}
10. h3 {[%clk 0:02:54.6]} 10... O-O {[%clk 0:02:53.8]} 11. O-O {[%clk
0:02:48.1]} 11... b5 {[%clk 0:02:52.9]} 12. a4 {[%clk 0:02:44.5]} 12... b4
{[%clk 0:02:50.2]} 13. Nd5 {[%clk 0:02:34.9]} 13... Nxd5 {[%clk 0:02:48.6]} 14.
exd5 {[%clk 0:02:35.6]} 14... Na5 {[%clk 0:02:48.6]} 15. Rb1 {[%clk 0:02:12.1]}
15... Bb7 {[%clk 0:02:44]} 16. Qd2 {[%clk 0:01:59]} 16... Nc4 {[%clk 0:02:36.3]}
17. Bxc4 {[%clk 0:01:58.4]} 17... Qxc4 {[%clk 0:02:37.2]} 18. Rfd1 {[%clk
0:01:54.5]} 18... Rac8 {[%clk 0:02:29.1]} 19. b3 {[%clk 0:01:53.5]} 19... Qc3
{[%clk 0:02:15.3]} 20. Bd4 {[%clk 0:01:33.2]} 20... Bxd4+ {[%clk 0:02:07.8]} 21.
Qxd4 {[%clk 0:01:30.2]} 21... Qxd4+ {[%clk 0:02:02.1]} 22. Rxd4 {[%clk
0:01:29.7]} 22... Rxc2 {[%clk 0:02:00.7]} 23. Rxb4 {[%clk 0:01:29.8]} 23... Bxd5
{[%clk 0:01:58.2]} 24. Nd4 {[%clk 0:01:26.2]} 24... Rxg2+ {[%clk 0:01:56.7]} 25.
Kf1 {[%clk 0:01:25.8]} 0-1

[Event "*** Titled Tuesday Blitz"]
[Site "Chess.com"]
[Date "2021.02.02"]
[Round "8"]
[White "Loy_Konstantin"]
[Black "NateSolon"]
[Result "1-0"]
[WhiteElo "2385"]
[BlackElo "2509"]
[TimeControl "180+1"]
[EndTime "11:26:23 PST"]
[Termination "Loy_Konstantin won by resignation"]

1. e4 {[%clk 0:03:00.9]} 1... c5 {[%clk 0:02:59.6]} 2. Nf3 {[%clk 0:02:59.1]}
2... d6 {[%clk 0:03:00.2]} 3. d4 {[%clk 0:02:59.1]} 3... cxd4 {[%clk 0:03:01.1]}
4. Qxd4 {[%clk 0:02:59.4]} 4... Nc6 {[%clk 0:03:00.9]} 5. Bb5 {[%clk 0:02:59.6]}
5... Bd7 {[%clk 0:03:01.4]} 6. Bxc6 {[%clk 0:03:00.1]} 6... Bxc6 {[%clk
0:03:02.3]} 7. Nc3 {[%clk 0:03:00.5]} 7... Nf6 {[%clk 0:03:02.4]} 8. Bg5 {[%clk
0:03:00.9]} 8... e6 {[%clk 0:03:02.9]} 9. O-O-O {[%clk 0:03:00.6]} 9... Be7
{[%clk 0:03:03.1]} 10. Rhe1 {[%clk 0:03:00.8]} 10... O-O {[%clk 0:03:03]} 11. e5
{[%clk 0:03:01.1]} 11... dxe5 {[%clk 0:03:02.7]} 12. Qh4 {[%clk 0:03:01.6]}
12... Qa5 {[%clk 0:02:53.2]} 13. Nxe5 {[%clk 0:03:01.1]} 13... Rac8 {[%clk
0:02:47.1]} 14. Ng4 {[%clk 0:03:00]} 14... Nxg4 {[%clk 0:02:26.3]} 15. Bxe7
{[%clk 0:02:59.8]} 15... Rfe8 {[%clk 0:02:26.7]} 16. Bg5 {[%clk 0:02:16]} 16...
Qf5 {[%clk 0:02:16.4]} 17. f3 {[%clk 0:02:05.9]} 17... Ne5 {[%clk 0:02:15.3]}
18. Qf4 {[%clk 0:01:50.6]} 18... Qxf4+ {[%clk 0:02:09.9]} 19. Bxf4 {[%clk
0:01:51.5]} 19... Nc4 {[%clk 0:02:10.4]} 20. b3 {[%clk 0:01:47.5]} 20... Nb6
{[%clk 0:02:06.6]} 21. Kb2 {[%clk 0:01:42.1]} 21... f6 {[%clk 0:02:01.3]} 22.
Be3 {[%clk 0:01:41.9]} 22... Kf7 {[%clk 0:01:47.3]} 23. Bxb6 {[%clk 0:01:41.5]}
23... axb6 {[%clk 0:01:48.2]} 24. Ne4 {[%clk 0:01:41.6]} 24... Bxe4 {[%clk
0:01:44.7]} 25. Rxe4 {[%clk 0:01:42.5]} 25... Red8 {[%clk 0:01:44.5]} 26. Red4
{[%clk 0:01:39.7]} 26... Rxd4 {[%clk 0:01:43.6]} 27. Rxd4 {[%clk 0:01:40.6]}
27... e5 {[%clk 0:01:43.8]} 28. Rd7+ {[%clk 0:01:39.4]} 1-0

[Event "*** Titled Tuesday Blitz"]
[Site "Chess.com"]
[Date "2021.02.02"]
[Round "8"]
[White "HanSchut"]
[Black "Manukyan_Artak"]
[Result "1-0"]
[WhiteElo "2283"]
[BlackElo "2409"]
[TimeControl "180+1"]
[EndTime "11:26:31 PST"]
[Termination "HanSchut won by resignation"]

1. e4 {[%clk 0:03:00.9]} 1... c6 {[%clk 0:02:59.3]} 2. d4 {[%clk 0:03:00.5]}
2... d5 {[%clk 0:02:59.5]} 3. e5 {[%clk 0:03:01.2]} 3... Bf5 {[%clk 0:02:58.8]}
4. Nf3 {[%clk 0:03:01.7]} 4... e6 {[%clk 0:02:58.3]} 5. Be2 {[%clk 0:03:02.2]}
5... c5 {[%clk 0:02:58.5]} 6. Be3 {[%clk 0:03:02.5]} 6... Nc6 {[%clk 0:02:58.3]}
7. O-O {[%clk 0:02:53.4]} 7... Qb6 {[%clk 0:02:57.7]} 8. Nc3 {[%clk 0:02:52.8]}
8... Qxb2 {[%clk 0:02:55.9]} 9. Qe1 {[%clk 0:02:53.3]} 9... c4 {[%clk
0:02:50.2]} 10. Rb1 {[%clk 0:02:46.1]} 10... Qxc2 {[%clk 0:02:49.9]} 11. Bd1
{[%clk 0:02:28.2]} 11... Qxb1 {[%clk 0:02:30]} 12. Nxb1 {[%clk 0:02:29.1]} 12...
Bxb1 {[%clk 0:02:30.3]} 13. Ba4 {[%clk 0:02:10]} 13... Bd3 {[%clk 0:02:23.1]}
14. Bxc6+ {[%clk 0:02:03.8]} 14... bxc6 {[%clk 0:02:22.7]} 15. Qa5 {[%clk
0:02:04.1]} 15... Bxf1 {[%clk 0:02:18.5]} 16. Kxf1 {[%clk 0:02:05]} 16... Kd7
{[%clk 0:02:04.3]} 17. Qa6 {[%clk 0:02:01.8]} 17... Rc8 {[%clk 0:01:50.7]} 18.
Bd2 {[%clk 0:01:54.6]} 18... Nh6 {[%clk 0:01:44]} 19. Ba5 {[%clk 0:01:53.8]}
19... Be7 {[%clk 0:01:22.6]} 20. Qb7+ {[%clk 0:01:44.1]} 1-0

[Event "*** Titled Tuesday Blitz"]
[Site "Chess.com"]
[Date "2021.02.02"]
[Round "8"]
[White "ErikBlomqvist"]
[Black "BlueWizzard"]
[Result "1-0"]
[WhiteElo "2504"]
[BlackElo "2738"]
[TimeControl "180+1"]
[EndTime "11:26:40 PST"]
[Termination "ErikBlomqvist won by resignation"]

1. e4 {[%clk 0:03:00.9]} 1... a6 {[%clk 0:03:00.9]} 2. d4 {[%clk 0:03:00.7]}
2... d5 {[%clk 0:03:01.2]} 3. exd5 {[%clk 0:02:56.4]} 3... Nf6 {[%clk 0:02:59]}
4. Nf3 {[%clk 0:02:55.2]} 4... Qxd5 {[%clk 0:02:57.9]} 5. Be2 {[%clk 0:02:51.8]}
5... g6 {[%clk 0:02:57]} 6. O-O {[%clk 0:02:51.4]} 6... Bg7 {[%clk 0:02:57.6]}
7. c4 {[%clk 0:02:51.7]} 7... Qd8 {[%clk 0:02:57.8]} 8. Nc3 {[%clk 0:02:52.1]}
8... O-O {[%clk 0:02:58.5]} 9. Re1 {[%clk 0:02:51.3]} 9... Bf5 {[%clk
0:02:55.5]} 10. h3 {[%clk 0:02:45.9]} 10... c5 {[%clk 0:02:54.7]} 11. dxc5
{[%clk 0:02:32.2]} 11... Qc7 {[%clk 0:02:49.9]} 12. Be3 {[%clk 0:02:26.8]} 12...
Nbd7 {[%clk 0:02:49.7]} 13. b4 {[%clk 0:02:15]} 13... a5 {[%clk 0:02:46.6]} 14.
a3 {[%clk 0:02:03.3]} 14... axb4 {[%clk 0:02:38]} 15. axb4 {[%clk 0:02:02.9]}
15... Rxa1 {[%clk 0:02:38.5]} 16. Qxa1 {[%clk 0:02:03.6]} 16... Ne4 {[%clk
0:02:39.1]} 17. Bd4 {[%clk 0:01:47.5]} 17... Bxd4 {[%clk 0:02:27.3]} 18. Nxd4
{[%clk 0:01:46.6]} 18... Nxf2 {[%clk 0:02:02.4]} 19. Kxf2 {[%clk 0:01:17.6]}
19... Bxh3 {[%clk 0:02:02.1]} 20. Nd5 {[%clk 0:01:13.4]} 20... Qe5 {[%clk
0:01:58.2]} 21. Nf3 {[%clk 0:01:00.7]} 1-0